bitfinex-derivatives/quotes_SOLF0:USTF0_20250507
["timestamp","ask_amount","ask_price","bid_price","bid_amount"]
[1746631899823,2.0382,146.07,146.02,6.8477]
[1746631900353,6.847,146.05,146.02,6.8477]
[1746631900626,2.0382,146.07,146.02,6.8477]
[1746631900924,6.8468,146.05,146.02,6.8477]
[1746631905923,6.8468,146.05,146.01,29.26]
[1746631906230,6.8459,146.07,146.01,29.26]
[1746631906427,14.45045894,146.1,146.01,29.26]
[1746631906631,6.8459,146.07,146.04,6.847]
[1746631906926,14.45045894,146.1,146.04,6.847]
[1746631907225,14.45045894,146.1,146.01,29.26]
[1746631907226,14.45045894,146.1,146.03,6.8474]
[1746631907931,6.847,146.05,146.03,6.8474]
[1746631908332,6.8471,146.04,146.02,6.8478]
[1746631910833,6.8468,146.05,146.02,6.8478]
[1746631912630,6.8471,146.04,146.02,6.8478]
[1746631913739,6.8477,146.03,146.01,36.1082]
[1746631914036,12.27595894,146.07,146.01,29.26]
[1746631914270,4.1976,146.06,146.01,29.26]
[1746631914438,6.8478,146.03,146.01,29.26]
[1746631914938,6.8473,146.04,146.01,29.26]
[1746631915447,6.8473,146.04,146.02,6.8478]
[1746631918547,2.1041,146.05,146.01,29.26]
[1746631919149,2.1041,146.05,146.03,6.8472]
[1746631919648,8.9508,146.05,146.03,6.8472]
[1746631919946,29.24,146.08,146.01,29.26]
[1746631920248,6.8452,146.08,146.06,6.8459]
[1746631920848,6.8449,146.09,146.06,6.8459]
[1746631921248,29.24,146.11,146.04,6.847]
[1746631921644,6.8462,146.06,146.04,6.847]
[1746631922648,6.8462,146.06,146.03,6.8473]
[1746631922947,6.8467,146.05,146.03,6.8473]
[1746631923445,6.8463,146.06,146.03,6.8473]
[1746631923950,12.27595894,146.09,146.03,6.8473]
[1746631924448,6.8468,146.05,146.03,6.8473]
[1746631925451,6.8468,146.05,146.02,6.8477]
[1746631926042,6.8471,146.04,146.01,36.1082]
[1746631926240,12.27595894,146.09,146.01,29.26]
[1746631926448,12.27595894,146.06,145.98,29.24]
[1746631926647,6.8487,146.01,145.98,36.0894]
[1746631926842,6.8487,146.01,145.98,29.24]
[1746631927049,6.8482,146.02,145.98,29.24]
[1746631927251,6.8482,146.02,145.99,6.8489]
[1746631927752,6.8476,146.03,145.99,6.8489]
[1746631928454,6.3221,146.05,146.0,6.8488]
[1746631929053,6.8478,146.03,146.0,6.8488]
[1746631929758,6.8478,146.03,146.01,6.8484]
[1746631930455,6.8478,146.03,146.0,6.8487]
[1746631931654,6.8482,146.02,146.0,6.8487]
[1746631932151,6.8482,146.02,145.98,29.24]
[1746631932351,6.8488,146.01,145.98,29.24]
[1746631932958,6.8488,146.01,145.99,6.8491]
[1746631933152,6.8482,146.02,145.98,29.24]
[1746631933456,6.8482,146.02,145.99,6.849]
[1746631933855,6.8486,146.01,145.99,6.849]
[1746631934155,12.27595894,146.03,145.98,29.24]
[1746631934357,12.27595894,146.0,145.95,29.24]
[1746631934554,6.8502,145.98,145.95,36.091]
[1746631935457,12.9163,145.99,145.95,29.24]
[1746631935954,29.24,146.02,145.95,29.24]
[1746631936154,6.8492,146.0,145.98,6.8498]
[1746631936860,6.8487,146.01,145.99,6.8492]
[1746631937155,12.27595894,146.03,145.99,6.8492]
[1746631937456,12.27595894,146.03,145.95,29.24]
[1746631937653,6.8487,146.01,145.99,6.8494]
[1746631937857,12.27595894,146.03,145.95,29.24]
[1746631938059,29.24,146.05,145.95,29.24]
[1746631938256,6.8483,146.02,145.99,6.8491]
[1746631938456,29.24,146.05,145.99,6.8491]
[1746631938658,29.24,146.05,145.95,29.24]
[1746631938858,6.8478,146.03,146.0,6.8486]
[1746631939162,29.24,146.05,146.0,6.8486]
[1746631939363,6.8478,146.03,146.0,6.8486]
[1746631940660,6.848,146.02,146.0,6.8486]
[1746631940897,29.24,146.05,146.01,6.8484]
[1746631941361,6.2924,146.06,145.99,29.24]
[1746631941559,6.2924,146.06,146.02,6.8478]
[1746631941756,6.8469,146.05,146.02,6.8478]
[1746631942362,6.8472,146.04,146.02,6.8478]
[1746631943360,10.9809,146.06,146.0,29.24]
[1746631943565,29.24,146.08,146.0,29.24]
[1746631943956,36.0855,146.08,146.05,6.8463]
[1746631944162,6.8455,146.08,146.0,29.24]
[1746631944465,35.4658,146.11,146.07,6.8456]
[1746631944967,6.8443,146.1,146.07,6.8456]
[1746631945563,8.8421,146.11,146.08,6.845]
[1746631947305,6.8444,146.1,146.08,6.845]
[1746631948572,8.842,146.11,146.08,6.845]
[1746631949172,6.8439,146.11,146.09,6.8447]
[1746631950172,6.8439,146.11,146.08,6.8451]
[1746631950512,41.51595894,146.14,146.08,6.8451]
[1746631950873,6.844,146.11,146.08,6.8451]
[1746631951272,41.51595894,146.14,146.07,6.8455]
[1746631951570,6.8445,146.1,146.07,6.8455]
[1746631952172,29.24,146.14,146.04,29.24]
[1746631952697,6.8438,146.11,146.08,6.8448]
[1746631952870,6.8438,146.11,146.08,36.0648]
[1746631953172,6.8438,146.11,146.08,29.22]
[1746631953872,6.8438,146.11,146.09,6.8447]
[1746631954165,6.8435,146.12,146.08,29.22]
[1746631954366,6.8435,146.12,146.09,6.8444]
[1746631954570,29.24,146.14,146.08,29.22]
[1746631954767,6.8431,146.13,146.08,29.22]
[1746631955272,6.8431,146.13,146.1,6.8439]
[1746631956173,6.8431,146.13,146.11,6.8436]
[1746631956572,6.2058,146.15,146.11,6.8436]
[1746631956883,41.49595894,146.21,146.12,29.22]
[1746631957273,41.49595894,146.21,146.14,6.842]
[1746631957673,6.8414,146.17,146.14,6.842]
[1746631959178,6.8415,146.16,146.14,6.842]
[1746631960978,6.8415,146.16,146.13,6.8426]
[1746631963481,6.8415,146.16,146.14,6.8423]
[1746631963685,41.49595894,146.21,146.12,29.22]
[1746631963888,12.27595894,146.18,146.12,29.22]
[1746631964082,6.2318,146.17,146.12,29.22]
[1746631964278,6.8428,146.13,146.12,29.22]
[1746631964780,6.8428,146.13,146.1,6.8439]
[1746631964983,6.8439,146.11,146.09,29.22]
[1746631965279,29.22,146.23,146.09,29.22]
[1746631965521,6.8412,146.17,146.14,6.842]
[1746631966087,6.841,146.17,146.14,6.8422]
[1746631966386,2.0585,146.2,146.13,29.22]
[1746631966681,14.35925894,146.19,146.13,29.22]
[1746631966986,6.8424,146.14,146.13,29.22]
[1746631967183,43.57925894,146.19,146.1,29.22]
[1746631967381,12.27595894,146.16,146.09,29.22]
[1746631967576,6.843,146.13,146.1,6.8441]
[1746631967781,4.0671,146.15,146.1,6.8441]
[1746631968088,6.8432,146.13,146.1,6.8441]
[1746631968281,4.0671,146.15,146.1,6.8441]
[1746631968716,6.8435,146.12,146.1,6.8441]
[1746631968889,33.2871,146.15,146.09,36.0645]
[1746631969088,2.128,146.14,146.09,36.0645]
[1746631969586,6.8442,146.1,146.09,29.22]
[1746631969793,2.128,146.14,146.09,29.22]
[1746631969988,2.128,146.14,146.08,6.845]
[1746631970819,6.8442,146.11,146.08,6.845]
[1746631971992,12.27595894,146.13,146.06,29.22]
[1746631972890,2.128,146.14,146.06,29.22]
[1746631973090,6.8429,146.13,146.06,29.22]
[1746631973491,6.8429,146.13,146.1,6.8439]
[1746631977294,29.22,146.15,146.06,29.22]
[1746631978095,6.8432,146.13,146.1,6.8441]
[1746631978297,4.0228,146.17,146.06,29.22]
[1746631978491,4.0228,146.17,146.07,31.3226]
[1746631978790,6.8425,146.14,146.07,31.3226]
[1746631979198,6.8425,146.14,146.11,6.8434]
[1746631979497,4.0228,146.17,146.07,31.3226]
[1746631979998,6.8432,146.13,146.1,6.844]
[1746631981093,6.8435,146.12,146.1,6.844]
[1746631981296,12.27595894,146.15,146.07,29.22]
[1746631981610,29.2,146.14,146.07,29.22]
[1746631981793,29.2,146.14,146.07,36.0656]
[1746631981994,29.2,146.14,146.07,29.22]
[1746631982295,29.2,146.14,146.09,6.8445]
[1746631982694,6.8437,146.12,146.09,6.8445]
[1746631982895,29.2,146.14,146.07,29.22]
[1746631983095,33.2228,146.17,146.07,29.22]
[1746631983499,6.8427,146.14,146.07,29.22]
[1746631983797,33.2228,146.17,146.07,29.22]
[1746631983996,6.8422,146.15,146.07,29.22]
[1746631984499,6.8422,146.15,146.12,6.8431]
[1746631985899,6.8416,146.16,146.13,6.8424]
[1746631987100,6.8416,146.16,146.14,6.8424]
[1746631987301,6.8416,146.16,146.11,29.2]
[1746631988302,6.8416,146.16,146.13,6.8426]
[1746631988506,6.8416,146.16,146.11,29.2]
[1746631988903,2.0286,146.17,146.15,6.8417]
[1746631989097,29.2,146.2,146.11,29.2]
[1746631989594,6.8401,146.19,146.17,6.8406]
[1746631990701,6.8397,146.2,146.15,29.2]
[1746631991201,6.8401,146.19,146.16,6.8412]
[1746631991507,6.8401,146.19,146.15,29.2]
[1746631991800,6.8401,146.19,146.16,6.8411]
[1746631992900,6.8405,146.18,146.16,6.8411]
[1746631994305,6.8405,146.18,146.15,36.0417]
[1746631995904,6.8402,146.19,146.16,6.8413]
[1746631997306,6.8405,146.18,146.16,6.8413]
[1746631997806,6.8403,146.19,146.17,6.841]
[1746631998501,6.1623,146.22,146.15,29.2]
[1746631998805,6.1623,146.22,146.18,6.8403]
[1746631999199,6.8395,146.21,146.18,6.8403]
[1746631999398,6.8395,146.21,146.19,6.84]
[1746631999598,36.0384,146.23,146.15,29.2]
[1746631999910,6.8384,146.23,146.21,6.8391]
[1746632000103,6.8384,146.23,146.18,29.2]
[1746632000399,12.27595894,146.25,146.18,29.2]
[1746632001201,6.8399,146.2,146.18,29.2]
[1746632001501,6.8385,146.23,146.18,29.2]
[1746632001705,35.3663,146.26,146.18,29.2]
[1746632002007,6.8392,146.21,146.19,6.8398]
[1746632002308,6.8392,146.21,146.18,29.2]
[1746632002608,6.84,146.19,146.18,29.2]
[1746632002809,29.2,146.21,146.14,29.2]
[1746632003008,6.112,146.2,146.14,29.2]
[1746632003199,6.112,146.2,146.14,36.0421]
[1746632003405,6.112,146.2,146.14,29.2]
[1746632003612,6.112,146.2,146.15,6.8418]
[1746632003804,6.112,146.2,146.14,29.2]
[1746632004106,6.112,146.2,146.15,6.8417]
[1746632004107,6.8409,146.18,146.15,6.8417]
[1746632004309,6.112,146.2,146.14,29.2]
[1746632004613,6.841,146.17,146.15,6.8417]
[1746632004910,6.112,146.2,146.15,6.8417]
[1746632005113,6.112,146.2,146.14,29.2]
[1746632005310,6.8408,146.18,146.14,29.2]
[1746632005912,6.8408,146.18,146.15,6.8414]
[1746632006913,6.8403,146.19,146.14,29.2]
[1746632007108,29.2,146.21,146.14,29.2]
[1746632007311,31.2796,146.24,146.14,29.2]
[1746632007614,6.8393,146.21,146.19,6.8399]
[1746632007806,31.2796,146.24,146.14,29.2]
[1746632008212,6.8384,146.23,146.2,6.8392]
[1746632008612,6.8384,146.23,146.18,29.2]
[1746632009513,6.8384,146.23,146.2,6.8393]
[1746632011311,6.8384,146.23,146.21,6.8391]
[1746632011909,8.9175,146.24,146.21,6.8391]
[1746632012309,2.0796,146.24,146.21,6.8391]
[1746632012513,6.8382,146.23,146.21,6.8391]
[1746632013914,8.9174,146.24,146.21,6.8391]
[1746632014346,2.0796,146.24,146.18,29.2]
[1746632014509,29.18,146.23,146.15,29.18]
[1746632014816,29.18,146.23,146.15,6.8417]
[1746632015013,6.8411,146.17,146.15,6.8417]
[1746632016719,6.8407,146.18,146.15,6.8417]
[1746632019524,6.8407,146.18,146.13,29.18]
[1746632019914,6.8407,146.18,146.15,6.8417]
[1746632020748,6.841,146.17,146.15,6.8417]
[1746632021324,42.8568,146.23,146.13,29.18]
[1746632021522,62.43648169,146.23,146.13,29.18]
[1746632021918,6.8427,146.14,146.11,6.8436]
[1746632022116,29.18,146.18,146.1,29.18]
[1746632022319,35.2856,146.17,146.1,29.18]
[1746632022614,35.2856,146.17,146.08,6.845]
[1746632022819,35.2856,146.17,146.09,6.8446]
[1746632023019,6.8432,146.13,146.07,29.18]
[1746632023424,6.8432,146.13,146.1,6.8442]
[1746632024227,6.8433,146.12,146.1,6.8442]
[1746632024725,6.8433,146.12,146.09,6.8445]
[1746632025526,6.8438,146.11,146.09,6.8445]
[1746632025727,6.8438,146.11,146.08,6.8449]
[1746632025926,29.2,146.13,146.04,29.2]
[1746632026127,2.0586,146.1,146.06,6.846]
[1746632026727,6.8451,146.09,146.06,6.846]
[1746632026920,2.0586,146.1,146.05,6.8463]
[1746632027326,2.0586,146.1,146.04,29.2]
[1746632027629,2.0586,146.1,146.06,6.846]
[1746632027821,6.8454,146.08,146.06,6.846]
[1746632029336,6.8454,146.08,146.05,6.8464]
[1746632031925,6.846,146.07,146.04,29.2]
[1746632032129,29.2,146.09,146.01,29.2]
[1746632032423,33.4638,146.09,146.01,29.2]
[1746632032627,6.8468,146.05,146.02,6.8476]
[1746632032926,33.4638,146.09,146.02,6.8476]
[1746632034027,6.8471,146.04,146.02,6.8476]
[1746632034430,33.4638,146.09,145.98,138.04322606]
[1746632034633,33.4638,146.09,145.98,29.2]
[1746632034840,33.4638,146.09,145.95,29.2]
[1746632035027,33.4638,146.09,145.98,6.8496]
[1746632035223,624.9038,146.09,145.98,6.8496]
[1746632035433,1.19214826,146.08,145.98,6.8496]
[1746632035837,6.8492,146.0,145.97,6.8502]
[1746632036434,2.1542,146.02,145.95,29.2]
[1746632036764,6.2848,146.02,145.96,6.8506]
[1746632037131,6.2848,146.02,145.95,29.2]
[1746632037432,6.2848,146.02,145.92,29.22]
[1746632038137,6.851,145.96,145.92,29.22]
[1746632038737,6.8505,145.97,145.93,6.8518]
[1746632038937,29.22,145.99,145.92,29.22]
[1746632039236,6.8513,145.95,145.92,29.22]
[1746632039436,29.22,145.99,145.89,620.66]
[1746632039737,6.8504,145.97,145.94,6.8514]
[1746632039930,29.22,145.99,145.89,620.66]
[1746632040337,6.8511,145.96,145.93,6.8519]
[1746632040533,29.22,145.99,145.89,620.66]
[1746632040838,6.8505,145.97,145.94,6.8514]
[1746632041934,29.22,145.99,145.89,620.66]
[1746632042339,29.22,145.99,145.96,6.8505]
[1746632042545,36.0697,145.99,145.96,6.8505]
[1746632043050,29.22,145.99,145.97,6.8502]
[1746632043241,29.22,145.99,145.93,29.22]
[1746632043439,29.22,145.99,145.96,6.8507]
[1746632043644,36.0697,145.99,145.96,6.8507]
[1746632045243,6.8499,145.98,145.96,6.8507]
[1746632046343,29.22,145.99,145.96,6.8507]
[1746632046540,29.22,145.99,145.93,29.22]
[1746632046937,29.22,145.99,145.94,6.8515]
[1746632047340,29.22,145.99,145.93,29.22]
[1746632047542,36.0694,145.99,145.93,29.22]
[1746632047737,6.8494,145.99,145.93,29.22]
[1746632048237,6.8494,145.99,145.96,6.8506]
[1746632048636,6.8499,145.98,145.93,29.22]
[1746632048838,35.5048,146.02,145.95,6.8512]
[1746632049038,35.5048,146.02,145.9,29.22]
[1746632049438,35.5048,146.02,145.93,6.852]
[1746632049640,6.8511,145.96,145.93,6.852]
[1746632050342,6.8514,145.95,145.93,6.852]
[1746632051648,29.22,145.98,145.9,29.22]
[1746632052249,6.8524,145.93,145.9,29.22]
[1746632052749,6.8524,145.93,145.91,6.8531]
[1746632052950,6.8524,145.93,145.9,29.22]
[1746632053151,6.8519,145.94,145.9,29.22]
[1746632053352,6.8519,145.94,145.91,6.8528]
[1746632055346,29.22,145.98,145.9,29.22]
[1746632055551,29.22,145.98,145.87,29.24]
[1746632055949,6.8529,145.92,145.89,6.8538]
[1746632056253,29.22,145.98,145.87,29.24]
[1746632056450,6.852,145.94,145.91,6.8529]
[1746632056648,29.22,145.98,145.87,29.24]
[1746632057096,6.8517,145.95,145.91,6.8529]
[1746632057253,29.22,145.98,145.91,6.8529]
[1746632057762,6.8517,145.95,145.92,6.8526]
[1746632058561,29.22,145.98,145.92,6.8526]
[1746632058962,29.22,145.98,145.91,6.8529]
[1746632059163,29.22,145.98,145.87,29.24]
[1746632059562,29.22,145.98,145.9,6.8534]
[1746632059862,6.8525,145.93,145.9,6.8534]
[1746632060064,6.8525,145.93,145.91,6.8531]
[1746632061366,29.22,145.98,145.87,29.24]
[1746632061953,29.22,145.98,145.95,6.8509]
[1746632062164,29.22,145.98,145.92,29.24]
[1746632062379,29.22,145.98,145.97,6.8503]
[1746632062559,29.22,145.98,145.92,29.24]
[1746632062560,260.85844975,146.0,145.92,29.24]
[1746632063064,260.85844975,146.0,145.93,1.9991]
[1746632063559,260.85844975,146.0,145.93,3.3576]
[1746632063761,260.85844975,146.0,145.99,6.8494]
[1746632064265,260.85844975,146.0,145.98,6.8497]
[1746632064562,6.8486,146.01,145.96,29.24]
[1746632064960,6.8489,146.0,145.98,6.8496]
[1746632065362,6.8489,146.0,145.96,29.24]
[1746632066364,29.24,146.03,145.96,29.24]
[1746632066862,6.8503,145.97,145.96,29.24]
[1746632067060,6.8503,145.97,145.93,31.2391]
[1746632067263,48.81968169,146.03,145.93,29.24]
[1746632067664,48.81968169,146.03,145.92,6.8525]
[1746632068066,6.8515,145.95,145.92,6.8525]
[1746632068561,29.24,145.98,145.91,6.8527]
[1746632068791,2.0412,145.97,145.91,6.8527]
[1746632068967,6.852,145.94,145.91,6.8527]
[1746632069366,4.0689,145.97,145.91,6.8527]
[1746632070066,6.852,145.94,145.91,6.8527]
[1746632070269,4.0689,145.97,145.9,36.0935]
[1746632070766,6.8526,145.93,145.9,36.0935]
[1746632070986,6.1181,145.97,145.87,29.24]
[1746632071468,6.1181,145.97,145.9,6.8533]
[1746632071872,6.8526,145.93,145.9,6.8533]
[1746632072267,6.8528,145.92,145.9,6.8533]
[1746632072460,6.1181,145.97,145.91,6.8531]
[1746632073166,6.8524,145.93,145.91,6.8531]
[1746632073671,6.8524,145.93,145.9,6.8534]
[1746632074069,6.8528,145.92,145.9,6.8534]
[1746632074566,6.8528,145.92,145.89,6.8538]
[1746632074866,6.8534,145.91,145.87,29.24]
[1746632075066,6.8534,145.91,145.88,6.8542]
[1746632075263,6.8543,145.89,145.87,29.24]
[1746632076074,29.24,145.94,145.85,6.8558]
[1746632076567,29.24,145.94,145.84,29.26]
[1746632077074,6.8544,145.89,145.86,6.8553]
[1746632077276,29.24,145.94,145.86,6.8553]
[1746632077571,29.24,145.94,145.84,29.26]
[1746632077770,29.24,145.94,145.85,6.8559]
[1746632078171,29.24,145.94,145.84,29.26]
[1746632078675,6.8548,145.88,145.85,6.8557]
[1746632079876,6.8548,145.88,145.85,6.8559]
[1746632080878,6.8548,145.88,145.86,6.8554]
[1746632081178,6.8543,145.89,145.86,6.8554]
[1746632081875,6.8543,145.89,145.84,29.26]
[1746632081876,6.8538,145.9,145.87,6.8549]
[1746632082077,29.24,145.94,145.84,29.26]
[1746632083278,6.8537,145.9,145.87,6.8546]
[1746632085074,6.8542,145.89,145.87,6.8546]
[1746632085273,6.8542,145.89,145.84,29.26]
[1746632085778,6.8542,145.89,145.86,6.855]
[1746632086279,6.8548,145.88,145.86,6.855]
[1746632086481,29.26,145.9,145.85,6.8559]
[1746632087279,29.26,145.9,145.86,6.8554]
[1746632088981,6.8542,145.89,145.87,6.8547]
[1746632090184,36.1138,145.9,145.88,6.8545]
[1746632090382,6.8538,145.9,145.88,6.8545]
[1746632094384,6.8533,145.91,145.89,6.8538]
[1746632094586,29.26,145.93,145.84,29.26]
[1746632095186,6.8544,145.89,145.84,29.26]
[1746632096187,6.8544,145.89,145.86,6.8552]
[1746632096491,6.8539,145.9,145.84,29.26]
[1746632096683,29.26,145.93,145.84,29.26]
[1746632096987,6.8546,145.88,145.86,6.8552]
[1746632097183,29.26,145.93,145.84,29.26]
[1746632097589,29.26,145.93,145.84,36.1161]
[1746632098294,6.8553,145.87,145.85,6.856]
[1746632100695,6.8548,145.88,145.85,6.856]
[1746632100892,6.8548,145.88,145.86,6.8554]
[1746632101190,6.8548,145.88,145.84,29.26]
[1746632101390,6.8548,145.88,145.86,6.8555]
[1746632101991,6.8543,145.89,145.87,6.8548]
[1746632102591,6.8547,145.88,145.86,6.8552]
[1746632104494,55.25987738,145.93,145.84,29.26]
[1746632104892,55.25987738,145.93,145.84,36.116]
[1746632105190,6.8554,145.87,145.84,36.116]
[1746632105489,55.25987738,145.93,145.84,36.116]
[1746632106293,6.8556,145.86,145.84,36.116]
[1746632106489,13.7059,145.92,145.81,29.24]
[1746632106693,12.29517738,145.9,145.81,29.24]
[1746632106895,6.8562,145.85,145.81,29.24]
[1746632107192,31.3852,145.89,145.82,6.8571]
[1746632107392,6.8569,145.84,145.81,29.24]
[1746632108285,31.3852,145.89,145.81,29.24]
[1746632108684,12.29517738,145.87,145.8,6.858]
[1746632108987,6.8562,145.85,145.78,29.24]
[1746632109188,12.29517738,145.87,145.78,29.24]
[1746632109393,12.29517738,145.87,145.82,6.8571]
[1746632109994,6.8558,145.86,145.82,6.8571]
[1746632110192,12.29517738,145.87,145.82,6.8571]
[1746632110394,12.29517738,145.87,145.78,29.24]
[1746632110595,6.8562,145.85,145.78,29.24]
[1746632110795,6.8562,145.85,145.82,6.857]
[1746632111295,6.8562,145.85,145.78,29.24]
[1746632112795,6.8562,145.85,145.82,6.8571]
[1746632113296,6.8562,145.85,145.83,6.8567]
[1746632114191,6.8565,145.84,145.78,29.24]
[1746632114593,6.8565,145.84,145.82,6.8574]
[1746632114896,6.8565,145.84,145.78,29.24]
[1746632115096,6.857,145.83,145.81,6.8576]
[1746632115297,6.857,145.83,145.78,29.24]
[1746632115492,29.26,145.85,145.78,29.24]
[1746632115694,6.8575,145.82,145.8,6.8581]
[1746632116192,6.8581,145.81,145.78,29.24]
[1746632116392,4.3593,145.84,145.78,29.24]
[1746632116897,6.8576,145.82,145.78,29.24]
[1746632117594,6.8576,145.82,145.8,6.8583]
[1746632117797,6.8576,145.82,145.78,29.24]
[1746632117992,6.8579,145.81,145.78,29.24]
[1746632118191,6.8579,145.81,145.79,6.8586]
[1746632118792,6.8579,145.81,145.78,29.24]
[1746632119598,6.8579,145.81,145.79,6.8587]
[1746632120193,6.8579,145.81,145.78,29.24]
[1746632120393,6.8579,145.81,145.75,621.58]
[1746632121798,6.8579,145.81,145.79,6.8585]
[1746632122299,6.8583,145.8,145.78,6.8591]
[1746632122907,4.3593,145.84,145.77,6.8597]
[1746632122908,6.8591,145.79,145.77,6.8597]
[1746632123398,6.8593,145.79,145.76,6.8599]
[1746632123600,29.26,145.81,145.72,29.26]
[1746632124100,6.8588,145.79,145.77,6.8596]
[1746632124597,6.8588,145.79,145.72,29.26]
[1746632125205,6.8588,145.79,145.76,6.8599]
[1746632125797,6.8588,145.79,145.77,6.8597]
[1746632126200,29.26,145.81,145.75,6.8602]
[1746632126399,4.34390211,145.8,145.72,29.26]
[1746632126698,4.34390211,145.79,145.72,29.26]
[1746632126897,11.20162775,145.78,145.76,6.86]
[1746632127090,4.34212775,145.77,145.76,6.86]
[1746632128604,4.34212775,145.77,145.75,6.8604]
[1746632128806,6.8595,145.78,145.75,6.8604]
[1746632129003,4.34071331,145.77,145.72,29.26]
[1746632129204,6.8595,145.78,145.72,29.26]
[1746632129400,4.34609453,145.77,145.72,29.26]
[1746632129601,29.26,145.81,145.72,29.26]
[1746632130002,29.26,145.81,145.72,41.55517738]
[1746632130203,2.1739,145.83,145.8,6.8583]
[1746632130702,9.0311,145.83,145.8,6.8583]
[1746632131101,9.0311,145.83,145.81,6.8578]
[1746632131503,40.476,145.84,145.81,6.8578]
[1746632131905,33.6193,145.84,145.81,6.8578]
[1746632132106,6.8573,145.83,145.8,6.8582]
[1746632132504,6.8573,145.83,145.81,6.8578]
[1746632132701,40.476,145.84,145.81,6.8578]
[1746632133206,33.6193,145.84,145.81,6.8578]
[1746632134312,4.3593,145.84,145.81,6.8578]
[1746632134699,29.26,145.85,145.77,29.26]
[1746632134900,29.26,145.85,145.78,2.0906]
[1746632135307,36.1163,145.85,145.82,6.8571]
[1746632135508,36.1163,145.85,145.78,2.0906]
[1746632135800,29.26,145.85,145.78,2.0906]
[1746632136010,31.2546,145.88,145.78,2.0906]
[1746632136505,6.8552,145.87,145.84,6.8561]
[1746632136803,31.2546,145.88,145.81,29.26]
[1746632136804,1.9946,145.88,145.81,29.26]
[1746632137004,6.8555,145.87,145.83,6.8569]
[1746632137197,1.9946,145.88,145.83,6.8569]
[1746632137401,1.9946,145.88,145.81,29.26]
[1746632137607,6.8555,145.86,145.83,6.8569]
[1746632138406,1.9946,145.88,145.81,29.26]
[1746632138605,14.28977738,145.88,145.81,29.26]
[1746632139001,6.8555,145.86,145.83,6.8568]
[1746632139505,1.9946,145.88,145.81,29.26]
[1746632140009,6.8553,145.87,145.84,6.8562]
[1746632140306,1.9946,145.88,145.84,6.8562]
[1746632140504,6.8562,145.85,145.82,6.8571]
[1746632140705,14.28977738,145.88,145.82,6.8571]
[1746632141507,14.28977738,145.88,145.83,6.8568]
[1746632141806,6.8561,145.85,145.83,6.8568]
[1746632142009,6.8561,145.85,145.78,31.3506]
[1746632142203,6.8561,145.85,145.82,6.8571]
[1746632142408,41.55517738,145.85,145.75,138.26689029]
[1746632142599,12.29517738,145.82,145.75,138.26689029]
[1746632142908,29.26,145.81,145.74,29.26]
[1746632143207,31.3701,145.81,145.76,6.86]
[1746632143408,6.8591,145.79,145.76,6.86]
[1746632144706,6.8593,145.78,145.76,6.86]
[1746632147012,31.3701,145.81,145.74,29.26]